[Event "Early-Titled-Tuesday-Blitz-January-23-2024"]
[Site "Chess.com"]
[Date "2024.01.23"]
[Round "9"]
[White "Akylbek2021"]
[Black "RantomOpening"]
[Result "0-1"]
[WhiteElo "2277"]
[BlackElo "2521"]
[TimeControl "180+1"]
[EndTime "9:46:01 PST"]
[Termination "RantomOpening won on time"]

1. e4 {[%clk 0:02:56.6]} 1... c5 {[%clk 0:03:00.2]} 2. Nf3 {[%clk 0:02:56]} 2...
e6 {[%clk 0:03:00.8]} 3. d4 {[%clk 0:02:56.1]} 3... cxd4 {[%clk 0:03:01.7]} 4.
Nxd4 {[%clk 0:02:57]} 4... Nf6 {[%clk 0:03:02.3]} 5. Bd3 {[%clk 0:02:56.8]} 5...
Nc6 {[%clk 0:03:02.9]} 6. Nb3 {[%clk 0:02:56.9]} 6... d5 {[%clk 0:03:02.4]} 7.
exd5 {[%clk 0:02:55.8]} 7... exd5 {[%clk 0:03:03.3]} 8. O-O {[%clk 0:02:55.3]}
8... Bd6 {[%clk 0:02:57.3]} 9. Re1+ {[%clk 0:02:53.8]} 9... Be6 {[%clk
0:02:57.7]} 10. Nc3 {[%clk 0:02:47.1]} 10... O-O {[%clk 0:02:57.3]} 11. h3
{[%clk 0:02:46.6]} 11... h6 {[%clk 0:02:54.1]} 12. Nb5 {[%clk 0:02:43.2]} 12...
Bb4 {[%clk 0:02:50.9]} 13. Bd2 {[%clk 0:02:39.8]} 13... Be7 {[%clk 0:02:49.8]}
14. N5d4 {[%clk 0:02:34.6]} 14... Qd7 {[%clk 0:02:46.5]} 15. Qe2 {[%clk
0:02:27]} 15... Ne4 {[%clk 0:02:37.7]} 16. Bxe4 {[%clk 0:02:14]} 16... dxe4
{[%clk 0:02:37.6]} 17. Nxe6 {[%clk 0:02:10.3]} 17... Qxe6 {[%clk 0:02:34.3]} 18.
Qxe4 {[%clk 0:02:09.1]} 18... Qxe4 {[%clk 0:02:27.2]} 19. Rxe4 {[%clk
0:02:09.1]} 19... Bf6 {[%clk 0:02:28.1]} 20. c3 {[%clk 0:01:59.5]} 20... Ne5
{[%clk 0:02:26]} 21. Rae1 {[%clk 0:01:51.7]} 21... Nd3 {[%clk 0:02:25.4]} 22.
Rb1 {[%clk 0:01:46.8]} 22... Rad8 {[%clk 0:02:24.4]} 23. Be3 {[%clk 0:01:41.1]}
23... a6 {[%clk 0:02:14.4]} 24. Bd4 {[%clk 0:01:37.6]} 24... Bg5 {[%clk
0:02:07.5]} 25. Kf1 {[%clk 0:01:29.4]} 25... f5 {[%clk 0:02:04.7]} 26. Re6
{[%clk 0:01:26.3]} 26... Nf4 {[%clk 0:02:02.1]} 27. Ree1 {[%clk 0:01:23.2]}
27... Kf7 {[%clk 0:01:54.9]} 28. h4 {[%clk 0:01:16.5]} 28... Be7 {[%clk
0:01:51.8]} 29. Bxg7 {[%clk 0:01:12]} 29... Rg8 {[%clk 0:01:50.7]} 30. Bxh6
{[%clk 0:01:08]} 30... Nxg2 {[%clk 0:01:46.7]} 31. Rxe7+ {[%clk 0:01:03.8]}
31... Kxe7 {[%clk 0:01:47.2]} 32. Bg5+ {[%clk 0:01:04.4]} 32... Rxg5 {[%clk
0:01:47.2]} 33. hxg5 {[%clk 0:01:04.6]} 33... Nf4 {[%clk 0:01:47.7]} 34. Nd4
{[%clk 0:00:56.6]} 34... Rg8 {[%clk 0:01:29.6]} 35. Nxf5+ {[%clk 0:00:46.2]}
35... Kf8 {[%clk 0:01:30]} 36. Nd6 {[%clk 0:00:27.1]} 36... Rxg5 {[%clk
0:01:28.4]} 37. Nxb7 {[%clk 0:00:27.1]} 37... Rh5 {[%clk 0:01:27.5]} 38. Kg1
{[%clk 0:00:25.5]} 38... Rg5+ {[%clk 0:01:27.5]} 39. Kh2 {[%clk 0:00:25.7]}
39... Rg2+ {[%clk 0:01:27.4]} 40. Kh1 {[%clk 0:00:26.1]} 40... Rxf2 {[%clk
0:01:28.3]} 41. a4 {[%clk 0:00:23.1]} 41... Nd3 {[%clk 0:01:25.5]} 42. b4 {[%clk
0:00:15.6]} 42... Ke7 {[%clk 0:01:22.1]} 43. Nc5 {[%clk 0:00:11.5]} 43... Nxc5
{[%clk 0:00:49.9]} 44. bxc5 {[%clk 0:00:12.4]} 44... Rf4 {[%clk 0:00:49.5]} 45.
Rb7+ {[%clk 0:00:08.9]} 45... Kd8 {[%clk 0:00:48.3]} 46. Rb4 {[%clk 0:00:08.7]}
46... Rf3 {[%clk 0:00:43.7]} 47. Rc4 {[%clk 0:00:04.1]} 47... Kc7 {[%clk
0:00:43.3]} 48. Kg2 {[%clk 0:00:04.4]} 48... Rd3 {[%clk 0:00:42.8]} 49. Kf2
{[%clk 0:00:04.7]} 49... Kc6 {[%clk 0:00:42.3]} 50. Ke2 {[%clk 0:00:05.1]} 50...
Rh3 {[%clk 0:00:42.7]} 51. Rg4 {[%clk 0:00:02]} 51... Kxc5 {[%clk 0:00:42.2]}
52. Kd2 {[%clk 0:00:01.5]} 52... Rh2+ {[%clk 0:00:38.7]} 53. Kd3 {[%clk
0:00:01.7]} 53... Ra2 {[%clk 0:00:39.6]} 0-1

[Event "Early-Titled-Tuesday-Blitz-January-23-2024"]
[Site "Chess.com"]
[Date "2024.01.23"]
[Round "9"]
[White "Carlitus2004"]
[Black "PawnEatingZombie"]
[Result "1-0"]
[WhiteElo "2387"]
[BlackElo "2112"]
[TimeControl "180+1"]
[EndTime "9:46:08 PST"]
[Termination "Carlitus2004 won on time"]

1. e4 {[%clk 0:03:00]} 1... e6 {[%clk 0:02:59.5]} 2. d4 {[%clk 0:02:58.8]} 2...
d5 {[%clk 0:03:00.1]} 3. exd5 {[%clk 0:02:56.7]} 3... exd5 {[%clk 0:03:00.2]} 4.
Nf3 {[%clk 0:02:57]} 4... Nf6 {[%clk 0:03:00]} 5. h3 {[%clk 0:02:52.1]} 5... c5
{[%clk 0:02:58.7]} 6. Bb5+ {[%clk 0:02:51.8]} 6... Nc6 {[%clk 0:02:58.2]} 7. O-O
{[%clk 0:02:51.8]} 7... Be7 {[%clk 0:02:57.2]} 8. dxc5 {[%clk 0:02:49.4]} 8...
O-O {[%clk 0:02:57.2]} 9. Be3 {[%clk 0:02:49.3]} 9... Qa5 {[%clk 0:02:12.6]} 10.
Bxc6 {[%clk 0:02:40.1]} 10... bxc6 {[%clk 0:02:12.5]} 11. a3 {[%clk 0:02:40.8]}
11... Re8 {[%clk 0:01:45.8]} 12. Nbd2 {[%clk 0:02:36.6]} 12... Qc7 {[%clk
0:01:33]} 13. b4 {[%clk 0:02:32.7]} 13... a5 {[%clk 0:01:32.8]} 14. Nb3 {[%clk
0:02:32.5]} 14... axb4 {[%clk 0:01:30.8]} 15. axb4 {[%clk 0:02:32.5]} 15... Bf5
{[%clk 0:01:28.5]} 16. Na5 {[%clk 0:02:19.2]} 16... Bd7 {[%clk 0:01:21.4]} 17.
Qd4 {[%clk 0:02:09.1]} 17... Ne4 {[%clk 0:01:19]} 18. Qb2 {[%clk 0:02:09.3]}
18... Rab8 {[%clk 0:01:10.6]} 19. Bd4 {[%clk 0:01:57.3]} 19... Bxc5 {[%clk
0:01:00.2]} 20. Bxc5 {[%clk 0:01:41.4]} 20... Nxc5 {[%clk 0:00:59.2]} 21. Qd4
{[%clk 0:01:35.8]} 21... Ne4 {[%clk 0:00:58.4]} 22. Rfe1 {[%clk 0:01:32.5]}
22... Qb6 {[%clk 0:00:36.5]} 23. c3 {[%clk 0:00:52.4]} 23... Qxd4 {[%clk
0:00:31.7]} 24. Nxd4 {[%clk 0:00:53.3]} 24... c5 {[%clk 0:00:31]} 25. bxc5
{[%clk 0:00:50]} 25... Nxc5 {[%clk 0:00:30.2]} 26. Nac6 {[%clk 0:00:47.7]} 26...
Rxe1+ {[%clk 0:00:24.5]} 27. Rxe1 {[%clk 0:00:46.5]} 27... Ra8 {[%clk 0:00:24]}
28. Ne7+ {[%clk 0:00:45.3]} 28... Kf8 {[%clk 0:00:22.8]} 29. Nxd5 {[%clk
0:00:46]} 29... Be6 {[%clk 0:00:18.3]} 30. Nxe6+ {[%clk 0:00:43.9]} 30... Nxe6
{[%clk 0:00:18.4]} 31. Rc1 {[%clk 0:00:41.1]} 31... Rc8 {[%clk 0:00:17.4]} 32.
c4 {[%clk 0:00:41.2]} 32... Nc5 {[%clk 0:00:17.8]} 33. Ne3 {[%clk 0:00:41.1]}
33... Ra8 {[%clk 0:00:17.5]} 34. Rd1 {[%clk 0:00:37.7]} 34... Ra2 {[%clk
0:00:15.5]} 35. Rd4 {[%clk 0:00:30.8]} 35... g6 {[%clk 0:00:13.8]} 36. g4 {[%clk
0:00:21]} 36... h6 {[%clk 0:00:10.9]} 37. h4 {[%clk 0:00:20.9]} 37... Re2 {[%clk
0:00:08.2]} 38. Kf1 {[%clk 0:00:20]} 38... Ra2 {[%clk 0:00:07.9]} 39. Kg2 {[%clk
0:00:19.3]} 39... Ne6 {[%clk 0:00:07.3]} 40. Re4 {[%clk 0:00:17.2]} 40... Ra1
{[%clk 0:00:06.4]} 41. Kf3 {[%clk 0:00:14.4]} 41... Rc1 {[%clk 0:00:05.5]} 42.
Re5 {[%clk 0:00:13.3]} 42... Nd4+ {[%clk 0:00:05.1]} 43. Ke4 {[%clk 0:00:13.1]}
43... Ne2 {[%clk 0:00:04.7]} 44. c5 {[%clk 0:00:10.5]} 44... Nc3+ {[%clk
0:00:04.3]} 45. Kd3 {[%clk 0:00:08.7]} 45... Nb5 {[%clk 0:00:04]} 46. c6 {[%clk
0:00:08.3]} 46... Nc7 {[%clk 0:00:03.9]} 47. Nc4 {[%clk 0:00:06.2]} 47... Ne6
{[%clk 0:00:02.8]} 48. Rxe6 {[%clk 0:00:04.6]} 48... fxe6 {[%clk 0:00:02.7]} 49.
c7 {[%clk 0:00:05.5]} 49... Rd1+ {[%clk 0:00:02.2]} 50. Ke4 {[%clk 0:00:03.6]}
1-0

[Event "Early-Titled-Tuesday-Blitz-January-23-2024"]
[Site "Chess.com"]
[Date "2024.01.23"]
[Round "9"]
[White "Sadykov_Ramil"]
[Black "baki83"]
[Result "0-1"]
[WhiteElo "2603"]
[BlackElo "2828"]
[TimeControl "180+1"]
[EndTime "9:46:09 PST"]
[Termination "baki83 won on time"]

1. e4 {[%clk 0:03:00.9]} 1... c5 {[%clk 0:02:59.9]} 2. Nf3 {[%clk 0:02:59.9]}
2... Nc6 {[%clk 0:02:59.8]} 3. Bb5 {[%clk 0:02:59.6]} 3... e5 {[%clk 0:02:59.1]}
4. O-O {[%clk 0:02:42.6]} 4... Nge7 {[%clk 0:02:56.6]} 5. d3 {[%clk 0:02:38.5]}
5... g6 {[%clk 0:02:50.4]} 6. Bg5 {[%clk 0:02:25]} 6... Bg7 {[%clk 0:02:50.2]}
7. Nc3 {[%clk 0:02:21.1]} 7... f6 {[%clk 0:02:41.9]} 8. Be3 {[%clk 0:02:18.1]}
8... d6 {[%clk 0:02:38.4]} 9. Nd2 {[%clk 0:02:10.3]} 9... O-O {[%clk 0:02:32.4]}
10. Bc4+ {[%clk 0:01:49.4]} 10... Kh8 {[%clk 0:02:31.7]} 11. a4 {[%clk
0:01:50.1]} 11... f5 {[%clk 0:02:29.6]} 12. Bg5 {[%clk 0:01:47.4]} 12... h6
{[%clk 0:02:27.5]} 13. Bxe7 {[%clk 0:01:44.1]} 13... Qxe7 {[%clk 0:02:22]} 14.
Nd5 {[%clk 0:01:43.3]} 14... Qd8 {[%clk 0:02:22.1]} 15. c3 {[%clk 0:01:37.3]}
15... f4 {[%clk 0:02:18.7]} 16. f3 {[%clk 0:01:27.8]} 16... g5 {[%clk
0:02:17.2]} 17. h3 {[%clk 0:01:25.3]} 17... h5 {[%clk 0:02:16.3]} 18. b4 {[%clk
0:01:15.3]} 18... cxb4 {[%clk 0:02:15.7]} 19. Nxb4 {[%clk 0:01:15.2]} 19... Nxb4
{[%clk 0:02:09.9]} 20. cxb4 {[%clk 0:01:15.2]} 20... Qb6+ {[%clk 0:02:10]} 21.
Kh1 {[%clk 0:01:10.4]} 21... g4 {[%clk 0:02:09.4]} 22. Qe1 {[%clk 0:00:49.2]}
22... Bf6 {[%clk 0:02:01.7]} 23. Qf2 {[%clk 0:00:32.3]} 23... Qxb4 {[%clk
0:01:39.8]} 24. Rab1 {[%clk 0:00:13]} 24... Qxa4 {[%clk 0:01:30.6]} 25. hxg4
{[%clk 0:00:12.1]} 25... hxg4 {[%clk 0:01:30.4]} 26. g3 {[%clk 0:00:12.1]} 26...
Kg7 {[%clk 0:01:24.9]} 27. Kg2 {[%clk 0:00:08.9]} 27... gxf3+ {[%clk 0:01:04.3]}
28. Qxf3 {[%clk 0:00:03.9]} 28... Qd7 {[%clk 0:01:03.5]} 29. Rh1 {[%clk
0:00:04.3]} 29... Qg4 {[%clk 0:00:58.8]} 30. Bd5 {[%clk 0:00:04.7]} 30... Qxg3+
{[%clk 0:00:49]} 31. Qxg3+ {[%clk 0:00:03.5]} 31... fxg3 {[%clk 0:00:49.9]} 32.
Bxb7 {[%clk 0:00:03.1]} 32... Bxb7 {[%clk 0:00:36.3]} 33. Rxb7+ {[%clk 0:00:04]}
33... Rf7 {[%clk 0:00:36.9]} 34. Rh7+ {[%clk 0:00:02.7]} 34... Kxh7 {[%clk
0:00:36.7]} 35. Rxf7+ {[%clk 0:00:03.4]} 35... Kg6 {[%clk 0:00:37.1]} 36. Rb7
{[%clk 0:00:02.4]} 36... a5 {[%clk 0:00:37.1]} 37. Rb2 {[%clk 0:00:02.1]} 37...
Bg5 {[%clk 0:00:34.6]} 38. Nc4 {[%clk 0:00:02.1]} 38... Bf4 {[%clk 0:00:34.7]}
39. Nxd6 {[%clk 0:00:01.9]} 39... Rh8 {[%clk 0:00:33]} 40. Kf3 {[%clk 0:00:02]}
40... Rh2 {[%clk 0:00:32.6]} 41. Rxh2 {[%clk 0:00:02]} 41... gxh2 {[%clk
0:00:32.5]} 42. Kg2 {[%clk 0:00:01.6]} 42... a4 {[%clk 0:00:30.2]} 43. Nc4
{[%clk 0:00:01.4]} 43... Kg5 {[%clk 0:00:29.3]} 44. Na3 {[%clk 0:00:01.1]} 44...
Kf6 {[%clk 0:00:27.6]} 45. Nc4 {[%clk 0:00:01.2]} 45... Ke7 {[%clk 0:00:26.5]}
46. Na3 {[%clk 0:00:01]} 46... Kd6 {[%clk 0:00:23.2]} 47. Nc2 {[%clk 0:00:01.3]}
47... Kc5 {[%clk 0:00:13.7]} 48. Kh1 {[%clk 0:00:01.3]} 48... Bc1 {[%clk
0:00:12.5]} 49. Kg2 {[%clk 0:00:01.4]} 49... a3 {[%clk 0:00:12.6]} 0-1

[Event "Early-Titled-Tuesday-Blitz-January-23-2024"]
[Site "Chess.com"]
[Date "2024.01.23"]
[Round "9"]
[White "Tejas_Rama"]
[Black "tigurones"]
[Result "0-1"]
[WhiteElo "2636"]
[BlackElo "2471"]
[TimeControl "180+1"]
[EndTime "9:46:17 PST"]
[Termination "tigurones won by resignation"]

1. d4 {[%clk 0:03:00.9]} 1... d5 {[%clk 0:02:55]} 2. c4 {[%clk 0:02:55.9]} 2...
e6 {[%clk 0:02:50.3]} 3. Nf3 {[%clk 0:02:55.9]} 3... Nf6 {[%clk 0:02:49.9]} 4.
Nc3 {[%clk 0:02:55.7]} 4... Bb4 {[%clk 0:02:48.6]} 5. cxd5 {[%clk 0:02:55.2]}
5... exd5 {[%clk 0:02:48.1]} 6. Bg5 {[%clk 0:02:55]} 6... h6 {[%clk 0:02:48.7]}
7. Bh4 {[%clk 0:02:54.5]} 7... g5 {[%clk 0:02:49.1]} 8. Bg3 {[%clk 0:02:54.6]}
8... Ne4 {[%clk 0:02:49.6]} 9. Rc1 {[%clk 0:02:14]} 9... h5 {[%clk 0:02:45.4]}
10. Qa4+ {[%clk 0:02:11]} 10... Nc6 {[%clk 0:02:44.3]} 11. Ne5 {[%clk
0:01:58.7]} 11... Bxc3+ {[%clk 0:02:11.4]} 12. bxc3 {[%clk 0:01:53.6]} 12... Bd7
{[%clk 0:02:10.7]} 13. Nxd7 {[%clk 0:01:30.7]} 13... Qxd7 {[%clk 0:02:10]} 14.
f3 {[%clk 0:01:05]} 14... Nxg3 {[%clk 0:02:08.2]} 15. hxg3 {[%clk 0:01:05.9]}
15... O-O-O {[%clk 0:02:03.2]} 16. e3 {[%clk 0:00:57.6]} 16... Qd6 {[%clk
0:02:00.2]} 17. Rb1 {[%clk 0:00:52.9]} 17... Qxg3+ {[%clk 0:01:31.6]} 18. Kd1
{[%clk 0:00:52.7]} 18... Qd6 {[%clk 0:01:28.5]} 19. Bb5 {[%clk 0:00:34.5]} 19...
a6 {[%clk 0:01:14.4]} 20. Bxc6 {[%clk 0:00:30.7]} 20... Qxc6 {[%clk 0:01:14.5]}
21. Qxc6 {[%clk 0:00:30.6]} 21... bxc6 {[%clk 0:01:15.4]} 22. Kd2 {[%clk
0:00:29.8]} 22... Kd7 {[%clk 0:01:14]} 23. Rb3 {[%clk 0:00:23.6]} 23... h4
{[%clk 0:01:12.8]} 24. Ra3 {[%clk 0:00:20.2]} 24... Rb8 {[%clk 0:01:10.7]} 25.
Kc2 {[%clk 0:00:19.6]} 25... Rb6 {[%clk 0:01:10.9]} 26. e4 {[%clk 0:00:16.1]}
26... Rhb8 {[%clk 0:01:02.6]} 27. Kd3 {[%clk 0:00:14.8]} 27... Rb2 {[%clk
0:00:58.4]} 28. Rxa6 {[%clk 0:00:14.7]} 28... Rxg2 {[%clk 0:00:58.2]} 29. c4
{[%clk 0:00:08.1]} 29... dxe4+ {[%clk 0:00:49.2]} 30. Kxe4 {[%clk 0:00:09]}
30... Rf2 {[%clk 0:00:43.2]} 31. Rg1 {[%clk 0:00:05.3]} 31... f6 {[%clk
0:00:42]} 32. Ke3 {[%clk 0:00:04.3]} 32... Rbb2 {[%clk 0:00:41.8]} 33. d5 {[%clk
0:00:03.6]} 33... Rbe2+ {[%clk 0:00:33.6]} 34. Kd3 {[%clk 0:00:03.8]} 34... Rxa2
{[%clk 0:00:27.5]} 35. dxc6+ {[%clk 0:00:04]} 35... Kd6 {[%clk 0:00:24.8]} 36.
Rxa2 {[%clk 0:00:04.9]} 36... Rxa2 {[%clk 0:00:24.3]} 37. Ke4 {[%clk 0:00:05.6]}
37... Rf2 {[%clk 0:00:20.6]} 38. Ke3 {[%clk 0:00:04.2]} 38... Rc2 {[%clk
0:00:18.4]} 39. f4 {[%clk 0:00:04.8]} 39... gxf4+ {[%clk 0:00:16.8]} 40. Kxf4
{[%clk 0:00:05.4]} 40... Rxc4+ {[%clk 0:00:17.4]} 41. Kf5 {[%clk 0:00:06.1]}
41... Kxc6 {[%clk 0:00:17.2]} 42. Kxf6 {[%clk 0:00:06.8]} 42... Kb5 {[%clk
0:00:17.7]} 43. Ke5 {[%clk 0:00:06.3]} 43... c5 {[%clk 0:00:17.8]} 44. Rh1
{[%clk 0:00:05.5]} 44... Rd4 {[%clk 0:00:17.9]} 45. Rh3 {[%clk 0:00:05.3]} 45...
Kb4 {[%clk 0:00:17.6]} 46. Rf3 {[%clk 0:00:05.6]} 46... Rg4 {[%clk 0:00:17.6]}
47. Kd5 {[%clk 0:00:05.2]} 47... c4 {[%clk 0:00:17.5]} 48. Rh3 {[%clk
0:00:03.7]} 48... c3 {[%clk 0:00:17.7]} 49. Rh1 {[%clk 0:00:04.1]} 49... c2
{[%clk 0:00:17.8]} 50. Ke5 {[%clk 0:00:03.9]} 50... Kc3 {[%clk 0:00:18.1]} 51.
Kf5 {[%clk 0:00:04.2]} 51... Rb4 {[%clk 0:00:18]} 52. Kg5 {[%clk 0:00:03.9]}
52... Rb1 {[%clk 0:00:17.6]} 53. Rh3+ {[%clk 0:00:04.4]} 53... Kb2 {[%clk
0:00:18.1]} 54. Rh2 {[%clk 0:00:04.6]} 54... Rd1 {[%clk 0:00:12.8]} 55. Kxh4
{[%clk 0:00:04.4]} 55... Kb1 {[%clk 0:00:13.5]} 0-1

[Event "Early-Titled-Tuesday-Blitz-January-23-2024"]
[Site "Chess.com"]
[Date "2024.01.23"]
[Round "9"]
[White "IlanSchnaider"]
[Black "Kunalm64"]
[Result "1-0"]
[WhiteElo "2780"]
[BlackElo "2576"]
[TimeControl "180+1"]
[EndTime "9:46:19 PST"]
[Termination "IlanSchnaider won on time"]

1. e4 {[%clk 0:03:00.9]} 1... c6 {[%clk 0:02:59.5]} 2. Nc3 {[%clk 0:02:59.8]}
2... d5 {[%clk 0:02:59.3]} 3. Nf3 {[%clk 0:03:00.5]} 3... Bg4 {[%clk 0:02:58.4]}
4. h3 {[%clk 0:03:00.6]} 4... Bxf3 {[%clk 0:02:58.1]} 5. Qxf3 {[%clk 0:03:01.5]}
5... Nf6 {[%clk 0:02:57.1]} 6. Be2 {[%clk 0:03:00.4]} 6... dxe4 {[%clk
0:02:54.6]} 7. Nxe4 {[%clk 0:03:00.5]} 7... Nxe4 {[%clk 0:02:54.8]} 8. Qxe4
{[%clk 0:03:00.7]} 8... Qd5 {[%clk 0:02:55.2]} 9. Qg4 {[%clk 0:02:58.7]} 9...
Nd7 {[%clk 0:02:53.6]} 10. O-O {[%clk 0:02:56.9]} 10... Nf6 {[%clk 0:02:52.6]}
11. Qg3 {[%clk 0:02:54]} 11... Qd6 {[%clk 0:02:45]} 12. Qb3 {[%clk 0:02:52.9]}
12... Qc7 {[%clk 0:02:42.5]} 13. d4 {[%clk 0:02:52.3]} 13... e6 {[%clk
0:02:42.4]} 14. Bg5 {[%clk 0:02:52.1]} 14... Be7 {[%clk 0:02:34.9]} 15. c3
{[%clk 0:02:51.5]} 15... h6 {[%clk 0:02:33.8]} 16. Bh4 {[%clk 0:02:48]} 16...
O-O {[%clk 0:02:17.2]} 17. Bg3 {[%clk 0:02:45.7]} 17... Bd6 {[%clk 0:02:16.7]}
18. Bxd6 {[%clk 0:02:42.8]} 18... Qxd6 {[%clk 0:02:16.2]} 19. Qxb7 {[%clk
0:02:43.4]} 19... Rab8 {[%clk 0:02:15.4]} 20. Qxa7 {[%clk 0:02:40.9]} 20... Rxb2
{[%clk 0:02:14.8]} 21. Bf3 {[%clk 0:02:40.8]} 21... Rfb8 {[%clk 0:02:12.3]} 22.
Qa4 {[%clk 0:02:27.6]} 22... c5 {[%clk 0:02:09.6]} 23. Qa3 {[%clk 0:02:11.4]}
23... Nd7 {[%clk 0:01:52.3]} 24. Rad1 {[%clk 0:02:01.1]} 24... Qc7 {[%clk
0:01:51.7]} 25. d5 {[%clk 0:01:42.6]} 25... Ne5 {[%clk 0:01:41.1]} 26. d6 {[%clk
0:01:42.5]} 26... Nxf3+ {[%clk 0:01:30.8]} 27. gxf3 {[%clk 0:01:43.4]} 27... Qd7
{[%clk 0:01:25.7]} 28. Qxc5 {[%clk 0:01:41.6]} 28... R2b5 {[%clk 0:01:17.4]} 29.
Qc7 {[%clk 0:01:39.2]} 29... Rd8 {[%clk 0:00:51.1]} 30. c4 {[%clk 0:01:29.4]}
30... Rg5+ {[%clk 0:00:34.9]} 31. Kh1 {[%clk 0:01:27.6]} 31... Qe8 {[%clk
0:00:29.3]} 32. Rb1 {[%clk 0:00:34.4]} 32... e5 {[%clk 0:00:25.5]} 33. Rfd1
{[%clk 0:00:25.7]} 33... Kh7 {[%clk 0:00:16.4]} 34. Qe7 {[%clk 0:00:17.8]} 34...
Qc6 {[%clk 0:00:14.3]} 35. Qxf7 {[%clk 0:00:08.2]} 35... Rxd6 {[%clk 0:00:12.1]}
36. Rxd6 {[%clk 0:00:07.7]} 36... Qxd6 {[%clk 0:00:12.4]} 37. Qd5 {[%clk
0:00:08.1]} 37... Qg6 {[%clk 0:00:11.5]} 38. Qe4 {[%clk 0:00:08.3]} 38... Rf5
{[%clk 0:00:10.6]} 39. Rg1 {[%clk 0:00:05.3]} 39... Qh5 {[%clk 0:00:10.1]} 40.
Rg3 {[%clk 0:00:05.1]} 40... Qf7 {[%clk 0:00:08]} 41. Kg2 {[%clk 0:00:03.8]}
41... g6 {[%clk 0:00:07.8]} 42. c5 {[%clk 0:00:03.7]} 42... Rf6 {[%clk
0:00:02.4]} 43. a4 {[%clk 0:00:02.2]} 43... Qc7 {[%clk 0:00:02.2]} 44. Qd5
{[%clk 0:00:02.1]} 44... Rc6 {[%clk 0:00:01.9]} 45. Qd3 {[%clk 0:00:02.4]} 45...
Qe7 {[%clk 0:00:01.1]} 46. a5 {[%clk 0:00:02.7]} 46... Qxc5 {[%clk 0:00:01.4]}
47. Qd7+ {[%clk 0:00:03]} 1-0

[Event "Early-Titled-Tuesday-Blitz-January-23-2024"]
[Site "Chess.com"]
[Date "2024.01.23"]
[Round "9"]
[White "KNVB"]
[Black "JonasEilenberg"]
[Result "1-0"]
[WhiteElo "2758"]
[BlackElo "2576"]
[TimeControl "180+1"]
[EndTime "9:46:20 PST"]
[Termination "KNVB won by resignation"]

1. d4 {[%clk 0:03:00.8]} 1... d5 {[%clk 0:02:52.3]} 2. Bf4 {[%clk 0:02:59.5]}
2... c5 {[%clk 0:02:51]} 3. e3 {[%clk 0:03:00]} 3... Nc6 {[%clk 0:02:51.4]} 4.
c3 {[%clk 0:03:00.2]} 4... Qb6 {[%clk 0:02:51]} 5. Qb3 {[%clk 0:03:00.6]} 5...
c4 {[%clk 0:02:51.3]} 6. Qc2 {[%clk 0:03:01.2]} 6... e5 {[%clk 0:02:51.8]} 7.
dxe5 {[%clk 0:03:01.4]} 7... Bf5 {[%clk 0:02:52.4]} 8. Qc1 {[%clk 0:03:01.5]}
8... g5 {[%clk 0:02:52.1]} 9. Bg3 {[%clk 0:03:01.9]} 9... Bg7 {[%clk 0:02:41.3]}
10. Nd2 {[%clk 0:03:00.5]} 10... Nxe5 {[%clk 0:02:19.6]} 11. Bxe5 {[%clk
0:02:21.7]} 11... Bxe5 {[%clk 0:02:20.5]} 12. Be2 {[%clk 0:02:22.3]} 12... Ne7
{[%clk 0:02:17.5]} 13. Bd1 {[%clk 0:02:21.3]} 13... Rc8 {[%clk 0:02:15.3]} 14.
Bc2 {[%clk 0:02:11.3]} 14... g4 {[%clk 0:01:56.6]} 15. Ne2 {[%clk 0:02:06.6]}
15... Qd6 {[%clk 0:01:48.9]} 16. Bxf5 {[%clk 0:01:18.8]} 16... Nxf5 {[%clk
0:01:49.8]} 17. Qc2 {[%clk 0:01:19.6]} 17... Ne7 {[%clk 0:01:39.4]} 18. O-O-O
{[%clk 0:01:02]} 18... Qa6 {[%clk 0:01:30.6]} 19. Kb1 {[%clk 0:01:00.2]} 19...
b5 {[%clk 0:01:30.7]} 20. f4 {[%clk 0:00:38.5]} 20... Bg7 {[%clk 0:01:30.2]} 21.
e4 {[%clk 0:00:38.7]} 21... O-O {[%clk 0:01:24.7]} 22. e5 {[%clk 0:00:18.4]}
22... b4 {[%clk 0:01:17.9]} 23. cxb4 {[%clk 0:00:16.1]} 23... Nc6 {[%clk
0:01:12.9]} 24. a3 {[%clk 0:00:15.1]} 24... f6 {[%clk 0:01:00.4]} 25. Nc3 {[%clk
0:00:12.9]} 25... d4 {[%clk 0:00:56.6]} 26. b5 {[%clk 0:00:06.6]} 26... d3
{[%clk 0:00:27.9]} 27. Qa4 {[%clk 0:00:04.9]} 27... Qxa4 {[%clk 0:00:27.8]} 28.
Nxa4 {[%clk 0:00:05.8]} 28... Na5 {[%clk 0:00:27.2]} 29. e6 {[%clk 0:00:04.7]}
29... f5 {[%clk 0:00:27]} 30. Rhe1 {[%clk 0:00:04.8]} 30... Rfe8 {[%clk
0:00:27.1]} 31. b6 {[%clk 0:00:04.4]} 31... Rb8 {[%clk 0:00:25.4]} 32. Rc1
{[%clk 0:00:03.7]} 32... axb6 {[%clk 0:00:24.1]} 33. e7 {[%clk 0:00:03.2]} 33...
b5 {[%clk 0:00:23.5]} 34. Nc5 {[%clk 0:00:03.6]} 34... Kf7 {[%clk 0:00:21.7]}
35. Nd7 {[%clk 0:00:03.2]} 35... Rb7 {[%clk 0:00:21.2]} 36. Ne5+ {[%clk
0:00:02.9]} 36... Bxe5 {[%clk 0:00:19]} 37. Rxe5 {[%clk 0:00:03.8]} 37... Kf6
{[%clk 0:00:18.6]} 38. a4 {[%clk 0:00:02.9]} 38... Nc6 {[%clk 0:00:15.3]} 39.
Rc5 {[%clk 0:00:02.9]} 39... Nd4 {[%clk 0:00:14.1]} 40. axb5 {[%clk 0:00:02.8]}
40... Rexe7 {[%clk 0:00:13.1]} 41. Nxc4 {[%clk 0:00:02.1]} 41... Rxb5 {[%clk
0:00:11.6]} 42. Rxb5 {[%clk 0:00:01.6]} 42... Nxb5 {[%clk 0:00:12.5]} 43. Ne5
{[%clk 0:00:02]} 43... Rb7 {[%clk 0:00:10.6]} 44. Nxd3 {[%clk 0:00:01.5]} 44...
Nd6 {[%clk 0:00:09.8]} 45. Rc6 {[%clk 0:00:01.7]} 45... Kg6 {[%clk 0:00:09.1]}
46. Rxd6+ {[%clk 0:00:01.8]} 46... Kf7 {[%clk 0:00:09.1]} 47. Ne5+ {[%clk
0:00:02.3]} 47... Ke7 {[%clk 0:00:09]} 48. Rd7+ {[%clk 0:00:02.8]} 48... Rxd7
{[%clk 0:00:08.9]} 49. Nxd7 {[%clk 0:00:03.7]} 49... Kxd7 {[%clk 0:00:09.8]} 50.
Kc2 {[%clk 0:00:04.6]} 50... h5 {[%clk 0:00:09.8]} 51. g3 {[%clk 0:00:04.6]}
51... h4 {[%clk 0:00:10.7]} 52. gxh4 {[%clk 0:00:04.7]} 52... Ke6 {[%clk
0:00:11.5]} 53. Kd3 {[%clk 0:00:05]} 53... Kf7 {[%clk 0:00:12.4]} 54. Kd4 {[%clk
0:00:05.4]} 54... Kg6 {[%clk 0:00:13.3]} 55. Ke5 {[%clk 0:00:04.3]} 55... Kh5
{[%clk 0:00:14.2]} 56. Kxf5 {[%clk 0:00:04.4]} 56... Kxh4 {[%clk 0:00:15.1]} 57.
b4 {[%clk 0:00:04.8]} 57... Kh3 {[%clk 0:00:16]} 58. Kg5 {[%clk 0:00:05.4]}
58... Kxh2 {[%clk 0:00:16.9]} 59. Kxg4 {[%clk 0:00:06]} 59... Kg2 {[%clk
0:00:17]} 60. f5 {[%clk 0:00:06.9]} 60... Kf2 {[%clk 0:00:17.9]} 61. f6 {[%clk
0:00:07.8]} 61... Ke3 {[%clk 0:00:18.8]} 62. f7 {[%clk 0:00:08.7]} 62... Kd2
{[%clk 0:00:19.7]} 1-0